Cogmind - Beta 10.1 @@@ ROGUE MODE // 2020.09.21 @ 20:10:58 Player: derk Result: Destroyed self with Grenade Launcher Performance ------------- Evolutions (0) 0 Regions Visited (2) 400 Robots Destroyed (38) 190 Value Destroyed (1068) 1068 Prototype IDs (0) 0 Alien Tech Used (0) 0 Bonus (0) 0 TOTAL SCORE: 1658 Bonus ------- None Cogmind --------- Core Integrity 0/250 Matter 260/300 Energy 160/160 System Corruption 0% Temperature Cool (9) Movement Treading (180) Ox1 Location -10/Mines Parts ------- > --- POWER (1) -------- Light Nuclear Core > --- PROPULSION (2) --- Light Treads Light Treads > --- UTILITY (2) ------ Large Storage Unit Large Storage Unit > --- WEAPON (2) ------- Assault Rifle Grenade Launcher > --- INVENTORY (16) --- Light Treads Light Treads Wheel Improved Heat Sink Cooling System Medium Storage Unit Targeting Computer Improved Targeting Computer Hacking Suite Trap Extractor Particle Gun Light Assault Rifle Grenade Launcher Rocket Launcher Peak State ------------ > --- POWER ------------ Light Nuclear Core > --- PROPULSION ------- Light Treads Light Treads > --- UTILITY ---------- Large Storage Unit Large Storage Unit > --- WEAPON ----------- Assault Rifle Light Assault Rifle > --- INVENTORY -------- Light Treads Light Treads Wheel Improved Heat Sink Cooling System Medium Storage Unit Targeting Computer Improved Targeting Computer Hacking Suite Trap Extractor Particle Gun Grenade Launcher Grenade Launcher Rocket Launcher [Rating: 11] Favorites ----------- Power Ion Engine Engine Ion Engine Power Core Light Nuclear Core Propulsion Light Treads Treads Light Treads Utility Large Storage Unit Storage Large Storage Unit Weapon Assault Rifle Energy Gun EM Pulse Gun Ballistic Gun Assault Rifle Launcher Grenade Launcher Build | -11 -10 -10 ------- Run | Scr Mat Min Slots Evolved . | . . . Power . | . . . Propulsion . | . . . Utility . | . . . Weapon . | . . . Parts Attached 23 | 7 11 5 Power 5 | 1 3 1 Engine 4 | 1 3 . Core 1 | . . 1 Reactor . | . . . Propulsion 4 | 2 1 1 Treads 4 | 2 1 1 Leg . | . . . Wheel . | . . . Hover . | . . . Flight . | . . . Utility 4 | 2 2 . Device . | . . . Storage 4 | 2 2 . Processor . | . . . Hackware . | . . . Protection . | . . . Artifact . | . . . Weapon 10 | 2 5 3 Energy Gun 2 | 1 1 . Energy Cannon . | . . . Ballistic Gun 7 | 1 4 2 Ballistic Cannon . | . . . Launcher 1 | . . 1 Special Weapon . | . . . Impact Weapon . | . . . Slashing Weapon . | . . . Piercing Weapon . | . . . Special Melee Weapon . | . . . Unidentified Prototypes . | . . . Parts Lost 7 | . 4 3 Power 1 | . 1 . Propulsion 1 | . . 1 Utility . | . . . Weapon 5 | . 3 2 Highest Loss Streak 2 | . 2 2 Average Slot Usage (%) 99 | . 99 99 Engine 13 | . 14 9 Treads 28 | . 28 28 Storage 28 | . 28 28 Energy Gun 4 | . 5 . Ballistic Gun 23 | . 22 26 Naked Turns . | . . . Heaviest Build 41 | 16 41 40 Greatest Support 40 | 40 40 40 Greatest Overweight (x) 1 | 1 1 . Average Overweight (x) . | . . . Largest Inventory Capacity 16 | 8 16 16 Average Capacity 13 | 6 13 16 Most Carried 16 | 5 16 16 Average Carried 10 | 3 10 14 Final Capacity 16 | 8 16 16 Final Carried 16 | 5 16 14 Class Distribution -------------------- 100% | Mutant Dominant Class ---------------- Mutant | -10/Materials Mutant | -10/Mines Resources | -11 -10 -10 ----------- Run | Scr Mat Min Matter Collected 742 | 260 379 103 Remotely . | . . . Salvage Created 1379 | 66 1060 253 Parts 87 | 2 68 17 Haulers Intercepted . | . . . Recyclers Shooed . | . . . Parts Field Recycled . | . . . Retrieved Matter . | . . . Parts Self-Destructed . | . . . Prevented . | . . . Kills | -11 -10 -10 ------- Run | Scr Mat Min Combat Hostiles Destroyed 28 | . 22 6 Guns 24 | . 20 4 AOE 4 | . 2 2 Classes Destroyed 7 | 1 6 . Worker 1 | . 1 . Builder 2 | . 2 . Recycler 3 | 1 2 . Operator 2 | . 2 . Watcher 2 | . 2 . Swarmer 3 | . 3 . Grunt 25 | . 19 6 Best Kill Streak 9 | 1 9 2 Combat Bots Only 6 | . 6 2 Max Kills in Single Turn 3 | 1 3 1 Gunslinging . | . . . Exploded 2 | . 2 1 Melee . | . . . Uniques/NPCs Destroyed . | . . . Combat | -11 -10 -10 -------- Run | Scr Mat Min Damage Taken 1407 | . 949 458 Core 258 | . 160 98 Absorbed by Shields . | . . . Core Remaining (%) 100 | 100 . . Volleys Fired 91 | 3 65 23 Largest 2 | 2 2 2 Hottest 60 | 60 60 40 Shots Fired 173 | 6 125 42 Gun 170 | 6 125 39 Cannon . | . . . Launcher 3 | . . 3 Special . | . . . Kinetic 150 | 3 108 39 Thermal 11 | . 11 . Explosive 3 | . . 3 Electromagnetic 9 | 3 6 . Robot Hit Streak 17 | 3 17 11 Robot Miss Streak 2 | 1 2 2 Penetration Max . | . . . Secondary Targets 3 | . 3 . Max Gunslinging Chain 1 | . 1 . Shots Hit Robots 133 | 5 95 33 Core Hits 71 | 2 52 17 Critical Hits 1 | . 1 . Critical Kills . | . . . Critical Parts Destroyed 1 | . 1 . Melee Attacks . | . . . Impact . | . . . Slashing . | . . . Piercing . | . . . Sneak Attacks . | . . . Combat Hostiles . | . . . Follow-up Attacks . | . . . Damage Inflicted 2321 | 53 1859 409 Guns 1426 | 53 1092 281 Cannons . | . . . Explosions 895 | . 767 128 Melee . | . . . Ramming . | . . . Kinetic 1223 | 26 916 281 Thermal 217 | . 217 . Explosive 776 | . 648 128 Electromagnetic 105 | 27 78 . Impact . | . . . Slashing . | . . . Piercing . | . . . Highest Corruption . | . . . Average Corruption . | . . . Corruption Purged . | . . . Overload Shots . | . . . Overflow Damage 97 | . 97 . Projectiles . | . . . Explosions 97 | . 97 . Melee . | . . . Knockbacks . | . . . Impact . | . . . Kinetic . | . . . Secondary . | . . . Self-Inflicted Damage 222 | . 165 57 Shots 6 | . 3 3 Rammed . | . . . Targets Rammed . | . . . Kicked . | . . . Crushed . | . . . Highest Temperature 82 | 20 82 24 Average Temperature 21 | 13 27 10 Received Heat Transfer 633 | . 402 231 Siege Activations . | . . . Robots Corrupted . | . . . Combat Hostiles . | . . . Parts Fried . | . . . Impact Corruptions . | . . . Robots Melted . | . . . Combat Hostiles . | . . . Parts Melted . | . . . Heat Transferred 475 | . 475 . Parts Sabotaged . | . . . Parts Stolen . | . . . Parts Stripped . | . . . Power Chain Reactions 1 | . 1 . Missiles Intercepted . | . . . Alert | -11 -10 -10 ------- Run | Scr Mat Min Peak Influence 366 | 5 366 247 Initial 142 | . 3 142 Average 184 | 2 198 197 Maximum Alert Level 1 | . 1 1 Low Security (%) 52 | 100 45 65 Level 1 47 | . 54 34 Level 2 . | . . . Level 3 . | . . . Level 4 . | . . . Level 5 . | . . . High Security . | . . . Max Security . | . . . Squads Dispatched 6 | . 6 . Investigation 3 | . 3 . Extermination . | . . . Reinforcement 3 | . 3 . Assault . | . . . Garrison . | . . . Intercept . | . . . Construction Impeded . | . . . Haulers Reinforced . | . . . Stealth | -11 -10 -10 --------- Run | Scr Mat Min Distress Signals 3 | . 3 . Communications Jammed . | . . . Distress Signals . | . . . Times Spotted 41 | . 35 6 Peak Tracking Total 6 | . 6 2 Tactical Retreats 3 | . 3 . Traps | -11 -10 -10 ------- Run | Scr Mat Min Traps Triggered 2 | . 2 . Indirectly . | . . . Trap Hack Attempts . | . . . Triggered . | . . . Disarmed . | . . . Reprogrammed . | . . . Reused . | . . . Traps Extracted . | . . . Installed . | . . . Triggered . | . . . Machines | -11 -10 -10 ---------- Run | Scr Mat Min Machines Disabled 3 | . 3 . Max in Single Turn 2 | . 2 . Machines Sabotaged . | . . . Garrisons Compromised . | . . . Overloaded Fab Kills . | . . . Fab Network Shutdowns . | . . . Hacking | -11 -10 -10 --------- Run | Scr Mat Min Machines Accessed 6 | . 6 . Terminals 4 | . 4 . Fabricators . | . . . Repair Stations . | . . . Recycling Units 2 | . 2 . Scanalyzers . | . . . Garrison Access . | . . . Total Hacks 22 | . 22 . Successful 9 | . 9 . Failed 13 | . 13 . Catastrophic 1 | . 1 . Database Lockouts . | . . . Manual 9 | . 9 . Terminals 17 | . 17 . Fabricators . | . . . Repair Stations . | . . . Recycling Units 5 | . 5 . Scanalyzers . | . . . Garrison Access . | . . . Terminal Hacks 7 | . 7 . Part Schematic 3 | . 3 . Recall Investigation 1 | . 1 . Registered Components 1 | . 1 . Zone Layout 2 | . 2 . Fabricator Hacks . | . . . Repair Station Hacks . | . . . Recycling Unit Hacks . | . . . Scanalyzer . | . . . Garrison Access Hacks . | . . . Unauthorized Hacks 2 | . 2 . Terminals 1 | . 1 . Track 1 | . 1 . Fabricators . | . . . Repair Stations . | . . . Recycling Units 1 | . 1 . Tunnel 1 | . 1 . Scanalyzers . | . . . Garrison Access . | . . . Data Cores Recovered . | . . . Used . | . . . Hacking Detections 4 | . 4 . Full Trace Events . | . . . Feedback Events . | . . . Feedback Blocked . | . . . Robot Schematics Acquired . | . . . Robots Built . | . . . Matter . | . . . Time . | . . . Total Robot Build Rating . | . . . Part Schematics Acquired 3 | . 3 . Parts Built . | . . . Matter . | . . . Time . | . . . Total Part Build Rating . | . . . Parts Repaired . | . . . Time . | . . . Parts Recycled . | . . . Recycled Matter . | . . . Retrieved Matter . | . . . Retrieved Components . | . . . Parts Scanalyzed . | . . . Part Schematics Acquired . | . . . Parts Damaged . | . . . Bothacking | -11 -10 -10 ------------ Run | Scr Mat Min Used RIF Installer . | . . . Robots Hacked . | . . . Non-combat . | . . . Combat . | . . . Robot Hacks Applied . | . . . Relay Couplers Released . | . . . Robots Rewired . | . . . Allies Hacked . | . . . Hacks Repelled . | . . . Allies | -11 -10 -10 -------- Run | Scr Mat Min Total Allies . | . . . Largest Group . | . . . Highest-Rated Group . | . . . Highest-Rated Ally . | . . . Total Orders . | . . . Ally Attacks . | . . . Total Damage . | . . . Kills . | . . . Allies Corrupted . | . . . Allies Melted . | . . . Intel | -11 -10 -10 ------- Run | Scr Mat Min Robot Analysis Total . | . . . Derelict Logs Recovered . | . . . Drone Launches . | . . . Drone Recoveries . | . . . Exploration | -11 -10 -10 ------------- Run | Scr Mat Min Turns Passed 1481 | 108 1150 223 Spaces Moved 678 | 50 532 96 Core 3 | 3 . . Treads 675 | 47 532 96 Legs . | . . . Wheels . | . . . Hover . | . . . Flight . | . . . Fastest Speed 50 | 50 160 160 Average Speed 165 | 154 167 160 Slowest Speed 180 | 160 180 160 Overloaded Moves . | . . . Propulsion Burnouts . | . . . Robots Hopped . | . . . Cave-ins Triggered . | . . . Exploration Rate (%) 41 | 4 96 24 Regions Visited 2 Branch Regions 1 Pre-discovered Areas 1 | . 1 . Known Exits Taken . | . . . Unknown Exits Taken 2 | 1 1 . Scrap Searched 1 | . . 1 Spaces Dug 11 | . . 11 Terrain Destroyed 64 | . 40 24 Melee . | . . . Projectile . | . . . AOE 64 | . 40 24 Terrain Rammed . | . . . Walls Destroyed . | . . . Machines Disabled . | . . . Actions | -11 -10 -10 --------- Run | Scr Mat Min Total 871 | 72 671 128 Wait 50 | 8 40 2 Move 676 | 49 531 96 Hop . | . . . Pick Up 22 | 5 16 1 Fast Attach 11 | 7 3 1 Attach 7 | . 4 3 Detach . | . . . Swap 5 | . 4 1 Drop 9 | . 8 1 Fire 91 | 3 65 23 Melee . | . . . Ram . | . . . Kick . | . . . Crush . | . . . Escape Stasis . | . . . Rewire . | . . . Trap . | . . . Miscellaneous . | . . . Route ------- -11/Scrapyard -10/Materials (discovered 5 exits: [*Mat x3] / [*Min x2]) -10/Mines (discovered 1 exit: [*Mat]) History --------- Turn | Location | Event 9 | -11/Scrapyard | Discovered new exit (range 15) 109 | -11/Scrapyard | Entered Materials 132 | -10/Materials | Discovered new exit (range 16) 172 | -10/Materials | Discovered new exit (range 12) 280 | -10/Materials | Discovered new exit (range 8) 300 | -10/Materials | Build established: Mutant 684 | -10/Materials | Discovered new exit (range 3) 956 | -10/Materials | Core integrity fell below 50% 1084 | -10/Materials | Discovered new exit (range 4) 1259 | -10/Materials | Entered Mines 1282 | -10/Mines | Core integrity fell below 20% 1320 | -10/Mines | Discovered new exit (range 5) 1324 | -10/Mines | Received a Rocket Launcher from a helpful Derelict 1482 | -10/Mines | Destroyed self with Grenade Launcher Last Messages --------------- 01376_ Acquired 18 matter. 01391_ R-06 Scavenger collects Heat Sink. 01396_ R-06 Scavenger collects Ion Engine. 01398_ K-01 Serf collects debris. 01404_ G-47 Trooper destroyed. 01405_ K-01 Serf collects debris. 01407_ Acquired 32 matter. 01409_ K-01 Serf collects debris. 01410_ Dropped Ion Engine. 01411_ Acquired Lgt. Nuclear Core. 01412_ Acquired 10 matter. 01413_ K-01 Serf collects debris. 01417_ Searching scrap... 01417_ Found Weapon Shielding. 01417_ Found EM Pulse Gun. 01417_ Found Sensor Array. 01417_ Found Utility Shielding. 01417_ Found 26 Matter. 01419_ K-01 Serf collects debris. 01482_ G-47 Trooper destroyed. Map ----- +----------------------------------------------------+ | ??????###???????# ###![#???????????????????? | | ????????????????# #?#%!##??????????????????? | | ????????????????# #?# ! ##?????????????????? | | ????????????????# #?#!= ##????????????????? | | ????????????????# ###%[ #????????????????? | | ????????????????#=##* #####????????????? | | ????????????????#=%[ #????????????? | | ????????????????##### ##### #??????## ???? | | ????????????????????## #???? #????? ???? | | ?????????????????????# #???? #???? ??? | | ?????????????????????# ###?? #??? ???? | | ?????????????????????# ##? #### #??? | | ?????????????????????# ## #???? | | ?????????????????????# #????? | | ?????????????????????# ## #?????? | | ?????????????????????## #??????????? | | ??????????????????????## ##??????????? | | ???????????????????????#### ###???????????? | | ??????##?????######???????## #?????????????? | | ?????? ???# ????????# #?????????????? | | ?????# ?# ????????# #########?????? | | ?????? # = ##??????# #?? | | ??????????? % % #??????## ########?????? | | ?????????????# ##??????# #????????????? | | ?????????????? ####???# #????????????? | | ?????????????????# @ ##### #????????????? | | ?????????????????## ## ##???????????? | | ??????????????????##[ ] ##??????????? | | ???????????????????## ] u #??????????? | | ????????????????????## ! =#??????????? | | ?????????????????????#### ?????? | | ????????????????????????## ???? | | ?????????????????????????# ########## ??? | | ????????????????????????? ###????????????? | | ?????????????????????????####??????????????? | | ???????????????????????????????????????????? | | ???????????????????????????????????????????? | | ???????????????????????????????????????????? | | ???????????????????????????????????????????? | | ???????????????????????????????????????????? | | ???????????????????????????????????????????? | | ???????????????????????????????????????????? | | ???????????????????????????????????????????? | | ???????????????????????????????????????????? | | | | | | | | | | | | | +----------------------------------------------------+ Best States ------------- Heat Dissipation 25 Energy Generation 14 Energy Capacity 250 Matter Stores 300 Matter Capacity 300 Sight Range 16 Terrain Scan Density 10 Evasion (%) 40 Recoil Reduction 2 Item Schematics ----------------- Hcp. Storage Unit | -10/Materials | Hacked Flight Unit | -10/Materials | Hacked Lrg. Storage Unit | -10/Materials | Hacked Robot Schematics ------------------ None Fabricated ------------ Nothing Alien Tech Used ----------------- None Achievements -------------- None Challenges ------------ None Game ------ Seed GravitonDirtyExtractor Manual? 0 Play Time 00:13:40 Cumulative 119.0 hours Start 2020.09.21 @ 18:11:00 End 2020.09.21 @ 20:10:58 Sessions 3 Manual Loads 0 Difficulty Rogue Special Mode None Game No. 67 Rogue 67 Adventurer 0 Explorer 0 Win Type - Total 1 Types 1/0/0/0/0/0/0/0/0 Lore% 42 Gallery% 70 Achievement% 53 Wizard Run 0 Options --------- ASCII 0 Keyboard 0 Movement Numpad Keybinds 0 Fullscreen 1 Font 18/SmallcapsGlow Map View 76x50 Tactical HUD 1 Map Filters NONE Filters NONE Steam 1 RUN: e9e22001-7641-4ed6-b2b7-f9c18bf3a6c1